Workbook

Sheet стандарт
F1: до 165 ПМ | G1: =H4*165 -> 499620 | H1: 0.03
F2: від 165 до 290 ПМ | G2: =H4*290 -> 878120 | H2: 0.04
F3: більше 290 ПМ | H3: 0.05
D4: КАЛЬКУЛЯТОР | H4: 3028
D5: Обрані Споживачем умови кредитування
B7: Кредит видається на: | D7: АВТО нове
B8: Дата надання кредиту | D8: =TODAY() -> 2025-06-30
B9: Сума кредиту,грн.: | D9: 100000 | E9: гривень
B10: Забезпечення | D10: 335000 | E10: гривень | J10: Заповніть дані, зазначені червоним кольором
B11: Строк користування кредитом (в місяцях): | D11: 84
B12: Погашення основної суми кредиту: щомісяця
B13: Погашення процентів: щомісяця
A14: =ROUND(D9/D11,2) -> 1190.48 | B14: Номінальна процентна ставка: | D14: =VLOOKUP(D15,'Номінальна %ставка'!$A$2:$H$8,MATCH(стандарт!$D$11,'Номінальна %ставка'!$A$2:$H$2,0),0) -> 0.1099 | E14: річних | F14: =D14 -> 0.1099 | I14: =F14/12 -> 0.009158333333
B15: Авансовий внесок | D15: 0.7 | F15: =D10*D15 -> 234500 | G15: гривень
B16: Супутні витрати позичальника:
A17: =DATE(YEAR(B40),MONTH(B40)+1,DAY(B40)) -> 2025-07-30 | B17: комісія за надання кредиту (разова): | D17: 0 | E17: від основної суми кредиту/ Всього: | G17: =D17*D9 -> 0 | I17: гривень
B18: обслуговування кредитної заборгованості: | D18: 0 | E18: на місяць від основної суми кредиту: | G18: =D18*D9 -> 0 | I18: гривень
B19: розрахунково-касове обслуговування: | G19: 0 | I19: гривень
B20: страхування НВ: | D20: 0 | E20: на рік від основної суми кредиту: | G20: =D20*D9 -> 0 | I20: гривень
B21: страхування КАСКО: | D21: 0.0699 | E21: на рік від залогової вартості: | G21: =D10*D21 -> 23416.5 | I21: гривень
B22: послуги нотаріуса: | G22: 0 | I22: гривень
B23: надання витягів/внесення запису(ів) до Державного реєстру обтяжень рухомого майна | E23: фіксована сума (одноразово) | G23: 0 | I23: гривень
B24: Державна реєстрація транспортного засобу | E24: фіксована сума (одноразово) | G24: 1500 | I24: гривень
B25: Отримання витягів/внесення запису до ДРОРМ | G25: 2000 | I25: гривень
B26: Збір до Пенсійного фонду | D26: =IF(D10<G1,H1,IF(AND(D10>=G1,D10<=G2),H2,IF(D10>G2,H3))) -> 0.03 | E26: від суми кредиту (одноразово) | G26: =(D10/1.2)*D26 -> 8375 | I26: гривень
B27: оцінка майна: | E27: фіксована сума (одноразово) | G27: 0 | I27: гривень
B28: інша плата за послуги кредитного посередника | G28: 0 | I28: гривень
B29: ВСЬОГО | G29: =SUM(G17:G28) -> 35291.5 | I29: гривень
F31: =PMT(F14/12,E11,-D9) ->  | G31: =IPMT(F14/12,1,24,-D9) -> 915.8333333
D32: Розрахунок загальної вартості споживчого кредиту та реальної процентної ставки
B34: Дата видачі кредиту/дата платежу | C34: Чиста сума кредиту/сума платежу за розрахунковий період, грн. | D34: Види платежів за кредитом | U34: Орієнтовна реальна річна процентна ставка, % | V34: Орієнтовні загальні витрати за кредитом, грн
D35: сума кредиту за договором | E35: проценти за користування кредитом | F35: платежі за супутні послуги
F36: банку | K36: третіх осіб | T36: кредитного посередника (за наявності)
F37: обслуговування кредитної заборгованості | G37: РКО | I37: комісія за надання кредиту | J37: інші послуги банку (отримання витягів/внесення запису до ДРОРМ) | K37: страхування НВ | L37: послугами нотаріусів | M37: страхування КАСКО | N37: оцінка майна | O37: надання витягів/внесення запису(ів) до Державного реєстру обтяжень рухомого майна | P37: інші послуги третіх осіб | R37: Державна реєстрація транспортного засобу | T37: інша плата за послуги кредитного посередника
B38: 1 | C38: 2 | D38: 3 | E38: 4 | F38: 5 | G38: 6 | I38: 7 | J38: 8 | K38: 9 | L38: 10 | M38: 11 | N38: 12 | O38: 13 | P38: 14 | R38: 15 | T38: 16 | U38: 17 | V38: 18
W39: остаток
A40: e | B40: =D8 -> 2025-06-30 | C40: =-(D40-SUM(F40:T40)) -> -64708.5 | D40: =D9 -> 100000 | E40: х | F40: =$G$18 -> 0 | G40: =G19 -> 0 | I40: =G17 -> 0 | J40: =G25 -> 2000 | K40: =IF(X40="страховка",$G$20,0) -> 0 | L40: =G22 -> 0 | M40: =IF(X40="страховка",$G$21,0) -> 23416.5 | N40: =G27 -> 0 | O40: =G23 -> 0 | P40: =G24 -> 1500 | R40: =G26 -> 8375 | T40: =G28 -> 0 | U40: х | V40: х | W40: 100000 | X40: =IF(MONTH($B$40)-MONTH(B40)=0,"страховка","нет") -> страховка
A41: e | B41: =DATE(YEAR(B40),MONTH(B40)+1,DAY(B40)) -> 2025-07-30 | C41: =SUM(D41:V41) -> 2106.313333 | D41: =$A$14 -> 1190.48 | E41: =W40*$D$14/360*Y41 -> 915.8333333 | F41: 0 | K41: =IF(X41="страховка",$G$20,0) -> 0 | M41: =IF(X41="страховка",$G$21,0) -> 0 | W41: =W40-D41 -> 98809.52 | X41: =IF(MONTH($B$40)-MONTH(B41)=0,"страховка","нет") -> нет | Y41: =B41-B40 -> 30
A42: e | B42: =DATE(YEAR(B41),MONTH(B41)+1,DAY(B41)) -> 2025-08-30 | C42: =SUM(D42:V42) -> 2125.574871 | D42: =$A$14 -> 1190.48 | E42: =W41*$D$14/360*Y42 -> 935.0948714 | F42: 0 | K42: 0 | M42: 0 | W42: =W41-D42 -> 97619.04 | X42: нет | Y42: =B42-B41 -> 31
A43: e | B43: 2025-09-30 | C43: 2114.308632 | D43: 1190.48 | E43: 923.8286316 | F43: 0 | K43: 0 | M43: 0 | W43: 96428.56 | X43: нет | Y43: 31
A44: e | B44: 2025-10-30 | C44: 2073.604895 | D44: 1190.48 | E44: 883.1248953 | F44: 0 | K44: 0 | M44: 0 | W44: 95238.08 | X44: нет | Y44: 30
A45: e | B45: 2025-11-30 | C45: 2091.776152 | D45: 1190.48 | E45: 901.2961521 | F45: 0 | K45: 0 | M45: 0 | W45: 94047.6 | X45: нет | Y45: 31
A46: e | B46: 2025-12-30 | C46: 2051.79927 | D46: 1190.48 | E46: 861.31927 | F46: 0 | K46: 0 | M46: 0 | W46: 92857.12 | X46: нет | Y46: 30
A47: e | B47: 2026-01-30 | C47: 2069.243673 | D47: 1190.48 | E47: 878.7636726 | F47: 0 | K47: 0 | M47: 0 | W47: 91666.64 | X47: нет | Y47: 31
A48: e | B48: 2026-03-02 | C48: 2057.977433 | D48: 1190.48 | E48: 867.4974328 | F48: 0 | K48: 0 | M48: 0 | W48: 90476.16 | X48: нет | Y48: 31
A49: e | B49: 2026-04-02 | C49: 2046.711193 | D49: 1190.48 | E49: 856.2311931 | F49: 0 | K49: 0 | M49: 0 | W49: 89285.68 | X49: нет | Y49: 31
A50: e | B50: 2026-05-02 | C50: 2008.188019 | D50: 1190.48 | E50: 817.7080193 | F50: 0 | K50: 0 | M50: 0 | W50: 88095.2 | X50: нет | Y50: 30
A51: e | B51: 2026-06-02 | C51: 25440.67871 | D51: 1190.48 | E51: 833.6987136 | F51: 0 | K51: 0 | M51: 23416.5 | W51: 86904.72 | X51: страховка | Y51: 31
A52: e | B52: 2026-07-02 | C52: 1986.382394 | D52: 1190.48 | E52: 795.902394 | F52: 0 | K52: 0 | M52: 0 | W52: 85714.24 | X52: нет | Y52: 30
A53: e | B53: 2026-08-02 | C53: 2001.646234 | D53: 1190.48 | E53: 811.166234 | F53: 0 | K53: 0 | M53: 0 | W53: 84523.76 | X53: нет | Y53: 31
A54: e | B54: 2026-09-02 | C54: 1990.379994 | D54: 1190.48 | E54: 799.8999943 | F54: 0 | K54: 0 | M54: 0 | W54: 83333.28 | X54: нет | Y54: 31
A55: e | B55: 2026-10-02 | C55: 1953.673956 | D55: 1190.48 | E55: 763.193956 | F55: 0 | K55: 0 | M55: 0 | W55: 82142.8 | X55: нет | Y55: 30
A56: e | B56: 2026-11-02 | C56: 1967.847515 | D56: 1190.48 | E56: 777.3675148 | F56: 0 | K56: 0 | M56: 0 | W56: 80952.32 | X56: нет | Y56: 31
A57: e | B57: 2026-12-02 | C57: 1931.868331 | D57: 1190.48 | E57: 741.3883307 | F57: 0 | K57: 0 | M57: 0 | W57: 79761.84 | X57: нет | Y57: 30
A58: e | B58: 2027-01-02 | C58: 1945.315035 | D58: 1190.48 | E58: 754.8350353 | F58: 0 | K58: 0 | M58: 0 | W58: 78571.36 | X58: нет | Y58: 31
A59: e | B59: 2027-02-02 | C59: 1934.048796 | D59: 1190.48 | E59: 743.5687955 | F59: 0 | K59: 0 | M59: 0 | W59: 77380.88 | X59: нет | Y59: 31
A60: e | B60: 2027-03-02 | C60: 1851.914566 | D60: 1190.48 | E60: 661.4345665 | F60: 0 | K60: 0 | M60: 0 | W60: 76190.4 | X60: нет | Y60: 28
A61: e | B61: 2027-04-02 | C61: 1911.516316 | D61: 1190.48 | E61: 721.036316 | F61: 0 | K61: 0 | M61: 0 | W61: 74999.92 | X61: нет | Y61: 31
A62: e | B62: 2027-05-02 | C62: 1877.354267 | D62: 1190.48 | E62: 686.8742673 | F62: 0 | K62: 0 | M62: 0 | W62: 73809.44 | X62: нет | Y62: 30
A63: e | B63: 2027-06-02 | C63: 25305.48384 | D63: 1190.48 | E63: 698.5038365 | F63: 0 | K63: 0 | M63: 23416.5 | W63: 72618.96 | X63: страховка | Y63: 31
A64: e | B64: 2027-07-02 | C64: 1855.548642 | D64: 1190.48 | E64: 665.068642 | F64: 0 | K64: 0 | M64: 0 | W64: 71428.48 | X64: нет | Y64: 30
A65: e | B65: 2027-08-02 | C65: 1866.451357 | D65: 1190.48 | E65: 675.971357 | F65: 0 | K65: 0 | M65: 0 | W65: 70238 | X65: нет | Y65: 31
A66: e | B66: 2027-09-02 | C66: 1855.185117 | D66: 1190.48 | E66: 664.7051172 | F66: 0 | K66: 0 | M66: 0 | W66: 69047.52 | X66: нет | Y66: 31
A67: e | B67: 2027-10-02 | C67: 1822.840204 | D67: 1190.48 | E67: 632.360204 | F67: 0 | K67: 0 | M67: 0 | W67: 67857.04 | X67: нет | Y67: 30
A68: e | B68: 2027-11-02 | C68: 1832.652638 | D68: 1190.48 | E68: 642.1726377 | F68: 0 | K68: 0 | M68: 0 | W68: 66666.56 | X68: нет | Y68: 31
A69: e | B69: 2027-12-02 | C69: 1801.034579 | D69: 1190.48 | E69: 610.5545787 | F69: 0 | K69: 0 | M69: 0 | W69: 65476.08 | X69: нет | Y69: 30
A70: e | B70: 2028-01-02 | C70: 1810.120158 | D70: 1190.48 | E70: 619.6401582 | F70: 0 | K70: 0 | M70: 0 | W70: 64285.6 | X70: нет | Y70: 31
A71: e | B71: 2028-02-02 | C71: 1798.853918 | D71: 1190.48 | E71: 608.3739184 | F71: 0 | K71: 0 | M71: 0 | W71: 63095.12 | X71: нет | Y71: 31
A72: e | B72: 2028-03-02 | C72: 1749.064603 | D72: 1190.48 | E72: 558.5846026 | F72: 0 | K72: 0 | M72: 0 | W72: 61904.64 | X72: нет | Y72: 29
A73: e | B73: 2028-04-02 | C73: 1776.321439 | D73: 1190.48 | E73: 585.8414389 | F73: 0 | K73: 0 | M73: 0 | W73: 60714.16 | X73: нет | Y73: 31
A74: e | B74: 2028-05-02 | C74: 1746.520515 | D74: 1190.48 | E74: 556.0405153 | F74: 0 | K74: 0 | M74: 0 | W74: 59523.68 | X74: нет | Y74: 30
A75: e | B75: 2028-06-02 | C75: 25170.28896 | D75: 1190.48 | E75: 563.3089594 | F75: 0 | K75: 0 | M75: 23416.5 | W75: 58333.2 | X75: страховка | Y75: 31
A76: e | B76: 2028-07-02 | C76: 1724.71489 | D76: 1190.48 | E76: 534.23489 | F76: 0 | K76: 0 | M76: 0 | W76: 57142.72 | X76: нет | Y76: 30
A77: e | B77: 2028-08-02 | C77: 1731.25648 | D77: 1190.48 | E77: 540.7764799 | F77: 0 | K77: 0 | M77: 0 | W77: 55952.24 | X77: нет | Y77: 31
A78: e | B78: 2028-09-02 | C78: 1719.99024 | D78: 1190.48 | E78: 529.5102402 | F78: 0 | K78: 0 | M78: 0 | W78: 54761.76 | X78: нет | Y78: 31
A79: e | B79: 2028-10-02 | C79: 1692.006452 | D79: 1190.48 | E79: 501.526452 | F79: 0 | K79: 0 | M79: 0 | W79: 53571.28 | X79: нет | Y79: 30
A80: e | B80: 2028-11-02 | C80: 1697.457761 | D80: 1190.48 | E80: 506.9777606 | F80: 0 | K80: 0 | M80: 0 | W80: 52380.8 | X80: нет | Y80: 31
A81: e | B81: 2028-12-02 | C81: 1670.200827 | D81: 1190.48 | E81: 479.7208267 | F81: 0 | K81: 0 | M81: 0 | W81: 51190.32 | X81: нет | Y81: 30
A82: e | B82: 2029-01-02 | C82: 1674.925281 | D82: 1190.48 | E82: 484.4452811 | F82: 0 | K82: 0 | M82: 0 | W82: 49999.84 | X82: нет | Y82: 31
A83: e | B83: 2029-02-02 | C83: 1663.659041 | D83: 1190.48 | E83: 473.1790414 | F83: 0 | K83: 0 | M83: 0 | W83: 48809.36 | X83: нет | Y83: 31
A84: e | B84: 2029-03-02 | C84: 1607.691563 | D84: 1190.48 | E84: 417.2115628 | F84: 0 | K84: 0 | M84: 0 | W84: 47618.88 | X84: нет | Y84: 28
A85: e | B85: 2029-04-02 | C85: 1641.126562 | D85: 1190.48 | E85: 450.6465619 | F85: 0 | K85: 0 | M85: 0 | W85: 46428.4 | X85: нет | Y85: 31
A86: e | B86: 2029-05-02 | C86: 1615.686763 | D86: 1190.48 | E86: 425.2067633 | F86: 0 | K86: 0 | M86: 0 | W86: 45237.92 | X86: нет | Y86: 30
A87: e | B87: 2029-06-02 | C87: 25035.09408 | D87: 1190.48 | E87: 428.1140824 | F87: 0 | K87: 0 | M87: 23416.5 | W87: 44047.44 | X87: страховка | Y87: 31
A88: e | B88: 2029-07-02 | C88: 1593.881138 | D88: 1190.48 | E88: 403.401138 | F88: 0 | K88: 0 | M88: 0 | W88: 42856.96 | X88: нет | Y88: 30
A89: e | B89: 2029-08-02 | C89: 1596.061603 | D89: 1190.48 | E89: 405.5816028 | F89: 0 | K89: 0 | M89: 0 | W89: 41666.48 | X89: нет | Y89: 31
A90: e | B90: 2029-09-02 | C90: 1584.795363 | D90: 1190.48 | E90: 394.3153631 | F90: 0 | K90: 0 | M90: 0 | W90: 40476 | X90: нет | Y90: 31
A91: e | B91: 2029-10-02 | C91: 1561.1727 | D91: 1190.48 | E91: 370.6927 | F91: 0 | K91: 0 | M91: 0 | W91: 39285.52 | X91: нет | Y91: 30
A92: e | B92: 2029-11-02 | C92: 1562.262884 | D92: 1190.48 | E92: 371.7828836 | F92: 0 | K92: 0 | M92: 0 | W92: 38095.04 | X92: нет | Y92: 31
A93: e | B93: 2029-12-02 | C93: 1539.367075 | D93: 1190.48 | E93: 348.8870747 | F93: 0 | K93: 0 | M93: 0 | W93: 36904.56 | X93: нет | Y93: 30
A94: e | B94: 2030-01-02 | C94: 1539.730404 | D94: 1190.48 | E94: 349.2504041 | F94: 0 | K94: 0 | M94: 0 | W94: 35714.08 | X94: нет | Y94: 31
A95: e | B95: 2030-02-02 | C95: 1528.464164 | D95: 1190.48 | E95: 337.9841643 | F95: 0 | K95: 0 | M95: 0 | W95: 34523.6 | X95: нет | Y95: 31
A96: e | B96: 2030-03-02 | C96: 1485.580061 | D96: 1190.48 | E96: 295.1000609 | F96: 0 | K96: 0 | M96: 0 | W96: 33333.12 | X96: нет | Y96: 28
A97: e | B97: 2030-04-02 | C97: 1505.931685 | D97: 1190.48 | E97: 315.4516848 | F97: 0 | K97: 0 | M97: 0 | W97: 32142.64 | X97: нет | Y97: 31
A98: e | B98: 2030-05-02 | C98: 1484.853011 | D98: 1190.48 | E98: 294.3730113 | F98: 0 | K98: 0 | M98: 0 | W98: 30952.16 | X98: нет | Y98: 30
A99: e | B99: 2030-06-02 | C99: 24899.89921 | D99: 1190.48 | E99: 292.9192053 | F99: 0 | K99: 0 | M99: 23416.5 | W99: 29761.68 | X99: страховка | Y99: 31
A100: e | B100: 2030-07-02 | C100: 1463.047386 | D100: 1190.48 | E100: 272.567386 | F100: 0 | K100: 0 | M100: 0 | W100: 28571.2 | X100: нет | Y100: 30
A101: e | B101: 2030-08-02 | C101: 1460.866726 | D101: 1190.48 | E101: 270.3867258 | F101: 0 | K101: 0 | M101: 0 | W101: 27380.72 | X101: нет | Y101: 31
A102: e | B102: 2030-09-02 | C102: 1449.600486 | D102: 1190.48 | E102: 259.120486 | F102: 0 | K102: 0 | M102: 0 | W102: 26190.24 | X102: нет | Y102: 31
A103: e | B103: 2030-10-02 | C103: 1430.338948 | D103: 1190.48 | E103: 239.858948 | F103: 0 | K103: 0 | M103: 0 | W103: 24999.76 | X103: нет | Y103: 30
A104: e | B104: 2030-11-02 | C104: 1427.068007 | D104: 1190.48 | E104: 236.5880065 | F104: =$G$18 -> 0 | K104: 0 | M104: 0 | W104: 23809.28 | X104: нет | Y104: 31
A105: e | B105: 2030-12-02 | C105: 1408.533323 | D105: 1190.48 | E105: 218.0533227 | F105: 0 | K105: =IF(X105="страховка",$G$20,0) -> 0 | M105: =IF(X105="страховка",$G$21,0) -> 0 | W105: 22618.8 | X105: =IF(MONTH($B$40)-MONTH(B105)=0,"страховка","нет") -> нет | Y105: 30
A106: e | B106: =DATE(YEAR(B105),MONTH(B105)+1,DAY(B105)) -> 2031-01-02 | C106: =SUM(D106:V106) -> 1404.535527 | D106: =$A$14 -> 1190.48 | E106: =W105*$D$14/360*Y106 -> 214.055527 | F106: 0 | K106: 0 | M106: 0 | W106: =W105-D106 -> 21428.32 | X106: нет | Y106: =B106-B105 -> 31
A107: e | B107: 2031-02-02 | C107: 1393.269287 | D107: 1190.48 | E107: 202.7892872 | F107: 0 | K107: 0 | M107: 0 | W107: 20237.84 | X107: нет | Y107: 31
A108: e | B108: 2031-03-02 | C108: 1363.468559 | D108: 1190.48 | E108: 172.988559 | F108: 0 | K108: 0 | M108: 0 | W108: 19047.36 | X108: нет | Y108: 28
A109: e | B109: 2031-04-02 | C109: 1370.736808 | D109: 1190.48 | E109: 180.2568077 | F109: 0 | K109: 0 | M109: 0 | W109: 17856.88 | X109: нет | Y109: 31
A110: e | B110: 2031-05-02 | C110: 1354.019259 | D110: 1190.48 | E110: 163.5392593 | F110: 0 | K110: 0 | M110: 0 | W110: 16666.4 | X110: нет | Y110: 30
A111: e | B111: 2031-06-02 | C111: 24764.70433 | D111: 1190.48 | E111: 157.7243282 | F111: 0 | K111: 0 | M111: 23416.5 | W111: 15475.92 | X111: страховка | Y111: 31
A112: e | B112: 2031-07-02 | C112: 1332.213634 | D112: 1190.48 | E112: 141.733634 | F112: 0 | K112: 0 | M112: 0 | W112: 14285.44 | X112: нет | Y112: 30
A113: e | B113: 2031-08-02 | C113: 1325.671849 | D113: 1190.48 | E113: 135.1918487 | F113: 0 | K113: 0 | M113: 0 | W113: 13094.96 | X113: нет | Y113: 31
A114: e | B114: 2031-09-02 | C114: 1314.405609 | D114: 1190.48 | E114: 123.925609 | F114: 0 | K114: 0 | M114: 0 | W114: 11904.48 | X114: нет | Y114: 31
A115: e | B115: 2031-10-02 | C115: 1299.505196 | D115: 1190.48 | E115: 109.025196 | F115: 0 | K115: 0 | M115: 0 | W115: 10714 | X115: нет | Y115: 30
A116: e | B116: 2031-11-02 | C116: 1291.873129 | D116: 1190.48 | E116: 101.3931294 | F116: 0 | K116: 0 | M116: 0 | W116: 9523.52 | X116: нет | Y116: 31
A117: e | B117: 2031-12-02 | C117: 1277.699571 | D117: 1190.48 | E117: 87.21957067 | F117: 0 | K117: 0 | M117: 0 | W117: 8333.04 | X117: нет | Y117: 30
A118: e | B118: 2032-01-02 | C118: 1269.34065 | D118: 1190.48 | E118: 78.86064993 | F118: 0 | K118: 0 | M118: 0 | W118: 7142.56 | X118: нет | Y118: 31
A119: e | B119: 2032-02-02 | C119: 1258.07441 | D119: 1190.48 | E119: 67.59441018 | F119: 0 | K119: 0 | M119: 0 | W119: 5952.08 | X119: нет | Y119: 31
A120: e | B120: 2032-03-02 | C120: 1243.174095 | D120: 1190.48 | E120: 52.69409491 | F120: 0 | K120: 0 | M120: 0 | W120: 4761.6 | X120: нет | Y120: 29
A121: e | B121: 2032-04-02 | C121: 1235.541931 | D121: 1190.48 | E121: 45.06193067 | F121: 0 | K121: 0 | M121: 0 | W121: 3571.12 | X121: нет | Y121: 31
A122: e | B122: 2032-05-02 | C122: 1223.185507 | D122: 1190.48 | E122: 32.70550733 | F122: 0 | K122: 0 | M122: 0 | W122: 2380.64 | X122: нет | Y122: 30
A123: e | B123: 2032-06-02 | C123: 24629.50945 | D123: 1190.48 | E123: 22.52945116 | F123: 0 | K123: 0 | M123: 23416.5 | W123: 1190.16 | X123: страховка | Y123: 31
A124: e | B124: 2032-07-02 | C124: 1201.379882 | D124: 1190.48 | E124: 10.899882 | F124: 0 | W124: -0.32 | Y124: 30
B125: Усього | C125: 303476.0623 | D125: 100000.32 | E125: 39560.24235 | F125: 0 | G125: 0 | H125: 0 | I125: 0 | J125: 2000 | K125: 0 | L125: 0 | M125: 187332 | N125: 0 | O125: 0 | P125: 1500 | Q125: 0 | R125: 8375 | S125: 0 | T125: 0 | U125: =XIRR(C40:C124,B40:B124) -> 0.8455710292 | V125: 238767.5623
B127: Загальні витрати за кредитом ( проценти за користування кредитом, комісії та інші обовязкові платежі за супровідні послуги кредитодавця, кредитного посередника (за наявності) та третіх осіб, повязані з отриманням, обслуговуванням та поверненням кредиту), грн з них: | J127: =V125 -> 238767.5623
B128: - Платежі за супутні послуги кредитодавця, повязані з отриманням, обслуговуванням та поверненням кредиту), грн | J128: =E125+F125+G125+I125+J125 -> 41560.24235
B129: - Платежі за супутні послуги третіх осіб, повязані з отриманням, обслуговуванням та поверненням кредиту), грн | J129: =K125+L125+M125+N125+O125+P125+R125+T125 -> 197207
B130: Орієнтовна загальна вартість кредиту для споживача за весь строк користування кредитом ( у т.ч. тіло кредиту, відсотки, комісії та інші платежі), грн | J130: =J127+D9 -> 338767.5623
B131: Орієнтовна реальна річна процентна ставка, % річних | J131: =U125 -> 0.8455710292
B132: Застереження: Розрахунок загальної вартості Кредиту і реальної процентної ставки носить інформативний характер для Позичальника і визначено станом на дату укладання Кредитного договору. При здійсненні розрахунку загальної вартості Кредиту і реальної процентної ставки Кредитор враховував вартість супутніх послуг третіх осіб, послуги кредитного посередник ( за наявності). В розрахунок загальної вартості Кредиту і реальної процентної ставки не включались умовні платежі Позичальника по Договору (пені, штрафи, які встановлюються згідно з Договором).
B133: Наведені обчислення реальної річної процентної ставки та орієнтовної загальної вартості кредиту для споживача є репрезентативними та базуються на обраних споживачем умовах кредитування, викладених вище, і на припущенні, що договір про споживчий кредит залишатиметься дійсним протягом погодженого строку, а кредитодавець і споживач виконають свої обов’язки на умовах та у строки, визначені в договорі.Реальна річна процентна ставка обчислена на основі припущення, що процентна ставка та інші платежі за послуги кредитодавця залишатимуться незмінними та застосовуватимуться протягом строку дії договору про споживчий кредит. Застереження: використання інших способів надання кредиту та/або зміна інших вищезазначених умов кредитування можуть мати наслідком застосування іншої реальної річної процентної ставки та орієнтовної загальної вартості кредиту для споживача. Орієнтовна реальна річна процентна ставка обчислена з використанням фінансової функції ЧИСТВНДОХ програмного продукту Microsoft Excel.
B134: Позичальник не сплачує Кредитору комісійних винагород за розрахунково-касове обслуговування, що пов‘язані з погашенням Кредиту та процентів за ним Позичальником у готівковій чи безготівковій формі через установи Кредитора. У випадку погашення Позичальником Кредиту та процентів за ним не через установи Кредитора Позичальник буде сплачувати послуги інших банків згідно з тарифами, які діятимуть в таких банках на момент здійснення розрахунково-касового обслуговування Позичальника.

Sheet ануітет
F1: до 165 ПМ | G1: =H4*165 -> 499620 | H1: 0.03
F2: від 165 до 290 ПМ | G2: =H4*290 -> 878120 | H2: 0.04
F3: більше 290 ПМ | H3: 0.05
D4: КАЛЬКУЛЯТОР | H4: 3028
D5: Обрані Споживачем умови кредитування
B7: Кредит видається на:
B8: Дата надання кредиту | D8: =TODAY() -> 2025-06-30 | K8: Заповніть дані, зазначені червоним кольором
B9: Сума кредиту,грн.: | D9: 800000 | E9: гривень
B10: Забезпечення | D10: 1000000 | E10: гривень | F10: =D10/1.2 -> 833333.3333
B11: Строк користування кредитом (в місяцях): | D11: 84
B12: Погашення основної суми кредиту: щомісяця
B13: Погашення процентів: щомісяця
A14: =ROUND(D9/D11,2) -> 9523.81 | B14: Номінальна процентна ставка: | D14: =VLOOKUP(D15,'Номінальна %ставка'!$A$2:$H$8,MATCH(стандарт!$D$11,'Номінальна %ставка'!$A$2:$H$2,0),0) -> 0.1699 | E14: річних | F14: =D14 -> 0.1699 | I14: =F14/12 -> 0.01415833333
B15: Авансовий внесок | D15: 0.2 | F15: =D10*D15 -> 200000 | G15: гривень
B16: Супутні витрати позичальника:
A17: =DATE(YEAR(B40),MONTH(B40)+1,DAY(B40)) -> 2025-07-30 | B17: комісія за надання кредиту (разова): | D17: 0 | E17: від основної суми кредиту. Всього: | G17: =D17*D9 -> 0 | I17: гривень
B18: обслуговування кредитної заборгованості: | D18: 0 | E18: на місяць від основної суми кредиту: | G18: =D18*D9 -> 0 | I18: гривень
B19: розрахунково-касове обслуговування: | G19: 0 | I19: гривень
B20: страхування НВ: | D20: 0 | E20: на рік від основної суми кредиту: | G20: =D20*D9 -> 0 | I20: гривень
B21: страхування КАСКО: | D21: 0.0699 | E21: на рік від залогової вартості: | G21: =D10*D21 -> 69900 | I21: гривень
B22: послуги нотаріуса: | G22: 0 | I22: гривень
B23: надання витягів/внесення запису(ів) до Державного реєстру обтяжень рухомого майна | E23: фіксована сума (одноразово) | G23: 0 | I23: гривень
B24: Державна реєстрація транспортного засобу | G24: 1500 | I24: гривень
B25: отримання витягів/внесення запису до ДРОРМ | G25: 2000 | I25: гривень
B26: Збір до Пенсійного фонду | D26: =IF(F10<G1,H1,IF(AND(F10>=G1,F10<=G2),H2,IF(F10>G2,H3))) -> 0.04 | E26: від суми кредиту (одноразово) | G26: =(D10/1.2)*D26 -> 33333.33333 | I26: гривень
B27: оцінка майна: | E27: фіксована сума (одноразово) | G27: 0 | I27: гривень
B28: інша плата за послуги кредитного посередника | G28: 0 | I28: гривень
B29: ВСЬОГО | G29: =SUM(G17:G28) -> 106733.3333 | I29: гривень
F31: =PMT(F14/12,E11,-D9) ->  | G31: =IPMT(F14/12,1,24,-D9) -> 11326.66667
D32: Розрахунок загальної вартості споживчого кредиту та реальної процентної ставки
B34: Дата видачі кредиту/дата платежу | C34: Чиста сума кредиту/сума платежу за розрахунковий період, грн. | D34: Види платежів за кредитом | U34: Реальна процентна ставка, % | V34: Абсолютне значення подорожчання кредиту, грн.
D35: сума кредиту за договором | E35: проценти за користування кредитом | F35: платежі за супутні послуги
F36: банку | K36: третіх осіб | T36: кредитного посередника (за наявності)
F37: обслуговування кредитної заборгованості | G37: РКО | I37: комісія за надання кредиту | J37: інші послуги банку (отримання витягів/внесення запису до ДРОРМ) | K37: страхування НВ | L37: послуги нотаріусів | M37: страхування КАСКО: | N37: оцінка майна | O37: надання витягів/внесення запису(ів) до Державного реєстру обтяжень рухомого майна | P37: Державна реєстрація транспортного засобу | R37: Збір до Пенсійного фонду | T37: інша плата за послуги кредитного посередника
B38: 1 | C38: 2 | D38: 3 | E38: 4 | F38: 5 | G38: 6 | I38: 7 | J38: 8 | K38: 9 | L38: 10 | M38: 11 | N38: 12 | O38: 13 | P38: 14 | R38: 15 | T38: 16 | U38: 17 | V38: 18
W39: остаток | Z39: ан платеж
A40: e | B40: =D8 -> 2025-06-30 | C40: =-(D40-SUM(F40:T40)) -> -693266.6667 | D40: =D9 -> 800000 | E40: х | F40: =$G$18 -> 0 | G40: =G19 -> 0 | I40: =G17 -> 0 | J40: =G25 -> 2000 | K40: =IF(X40="страховка",$G$20,0) -> 0 | L40: =G22 -> 0 | M40: =IF(X40="страховка",$G$21,0) -> 69900 | N40: =G27 -> 0 | O40: =G23 -> 0 | P40: =G24 -> 1500 | R40: =G26 -> 33333.33333 | T40: =G28 -> 0 | U40: х | V40: х | W40: 800000 | X40: =IF(MONTH($B$40)-MONTH(B40)=0,"страховка","нет") -> страховка | AB40: =(D9*D14/12)/(1-(1/(1+D14/12)^D11)) -> 16344.02094
A41: e | B41: =DATE(YEAR(B40),MONTH(B40)+1,DAY(B40)) -> 2025-07-30 | C41: =SUM(D41:V41) -> 16344.02094 | D41: =Z41-E41 -> 5017.354274 | E41: =W40*$D$14/12 -> 11326.66667 | F41: =$G$18 -> 0 | K41: =IF(X41="страховка",$G$20,0) -> 0 | M41: =IF(X41="страховка",$G$21,0) -> 0 | W41: =W40-D41 -> 794982.6457 | X41: =IF(MONTH($B$40)-MONTH(B41)=0,"страховка","нет") -> нет | Y41: =B41-B40 -> 30 | Z41: =PMT($D$14/12,$D$11,-$D$9) -> 16344.02094
A42: e | B42: =DATE(YEAR(B41),MONTH(B41)+1,DAY(B41)) -> 2025-08-30 | C42: =SUM(D42:V42) -> 16344.02094 | D42: =Z42-E42 -> 5088.391648 | E42: =W41*$D$14/12 -> 11255.62929 | F42: 0 | K42: 0 | M42: 0 | W42: =W41-D42 -> 789894.2541 | X42: нет | Y42: =B42-B41 -> 31 | Z42: =PMT($D$14/12,$D$11,-$D$9) -> 16344.02094
A43: e | B43: 2025-09-30 | C43: 16344.02094 | D43: 5160.434793 | E43: 11183.58615 | F43: 0 | K43: 0 | M43: 0 | W43: 784733.8193 | X43: нет | Y43: 31 | Z43: 16344.02094
A44: e | B44: 2025-10-30 | C44: 16344.02094 | D44: 5233.497949 | E44: 11110.52299 | F44: 0 | K44: 0 | M44: 0 | W44: 779500.3213 | X44: нет | Y44: 30 | Z44: 16344.02094
A45: e | B45: 2025-11-30 | C45: 16344.02094 | D45: 5307.595558 | E45: 11036.42538 | F45: 0 | K45: 0 | M45: 0 | W45: 774192.7258 | X45: нет | Y45: 31 | Z45: 16344.02094
A46: e | B46: 2025-12-30 | C46: 16344.02094 | D46: 5382.742265 | E46: 10961.27868 | F46: 0 | K46: 0 | M46: 0 | W46: 768809.9835 | X46: нет | Y46: 30 | Z46: 16344.02094
A47: e | B47: 2026-01-30 | C47: 16344.02094 | D47: 5458.952924 | E47: 10885.06802 | F47: 0 | K47: 0 | M47: 0 | W47: 763351.0306 | X47: нет | Y47: 31 | Z47: 16344.02094
A48: e | B48: 2026-03-02 | C48: 16344.02094 | D48: 5536.242599 | E48: 10807.77834 | F48: 0 | K48: 0 | M48: 0 | W48: 757814.788 | X48: нет | Y48: 31 | Z48: 16344.02094
A49: e | B49: 2026-04-02 | C49: 16344.02094 | D49: 5614.626567 | E49: 10729.39437 | F49: 0 | K49: 0 | M49: 0 | W49: 752200.1614 | X49: нет | Y49: 31 | Z49: 16344.02094
A50: e | B50: 2026-05-02 | C50: 16344.02094 | D50: 5694.120322 | E50: 10649.90062 | F50: 0 | K50: 0 | M50: 0 | W50: 746506.0411 | X50: нет | Y50: 30 | Z50: 16344.02094
A51: e | B51: 2026-06-02 | C51: 86244.02094 | D51: 5774.739575 | E51: 10569.28137 | F51: 0 | K51: 0 | M51: 69900 | W51: 740731.3015 | X51: страховка | Y51: 31 | Z51: 16344.02094
A52: e | B52: 2026-07-02 | C52: 16344.02094 | D52: 5856.500263 | E52: 10487.52068 | F52: 0 | K52: 0 | M52: 0 | W52: 734874.8013 | X52: нет | Y52: 30 | Z52: 16344.02094
A53: e | B53: 2026-08-02 | C53: 16344.02094 | D53: 5939.418546 | E53: 10404.60239 | F53: 0 | K53: 0 | M53: 0 | W53: 728935.3827 | X53: нет | Y53: 31 | Z53: 16344.02094
A54: e | B54: 2026-09-02 | C54: 16344.02094 | D54: 6023.510813 | E54: 10320.51013 | F54: 0 | K54: 0 | M54: 0 | W54: 722911.8719 | X54: нет | Y54: 31 | Z54: 16344.02094
A55: e | B55: 2026-10-02 | C55: 16344.02094 | D55: 6108.793687 | E55: 10235.22725 | F55: 0 | K55: 0 | M55: 0 | W55: 716803.0782 | X55: нет | Y55: 30 | Z55: 16344.02094
A56: e | B56: 2026-11-02 | C56: 16344.02094 | D56: 6195.284025 | E56: 10148.73692 | F56: 0 | K56: 0 | M56: 0 | W56: 710607.7942 | X56: нет | Y56: 31 | Z56: 16344.02094
A57: e | B57: 2026-12-02 | C57: 16344.02094 | D57: 6282.998921 | E57: 10061.02202 | F57: 0 | K57: 0 | M57: 0 | W57: 704324.7953 | X57: нет | Y57: 30 | Z57: 16344.02094
A58: e | B58: 2027-01-02 | C58: 16344.02094 | D58: 6371.955714 | E58: 9972.065226 | F58: 0 | K58: 0 | M58: 0 | W58: 697952.8396 | X58: нет | Y58: 31 | Z58: 16344.02094
A59: e | B59: 2027-02-02 | C59: 16344.02094 | D59: 6462.171987 | E59: 9881.848953 | F59: 0 | K59: 0 | M59: 0 | W59: 691490.6676 | X59: нет | Y59: 31 | Z59: 16344.02094
A60: e | B60: 2027-03-02 | C60: 16344.02094 | D60: 6553.665572 | E60: 9790.355368 | F60: 0 | K60: 0 | M60: 0 | W60: 684937.002 | X60: нет | Y60: 28 | Z60: 16344.02094
A61: e | B61: 2027-04-02 | C61: 16344.02094 | D61: 6646.454554 | E61: 9697.566387 | F61: 0 | K61: 0 | M61: 0 | W61: 678290.5474 | X61: нет | Y61: 31 | Z61: 16344.02094
A62: e | B62: 2027-05-02 | C62: 16344.02094 | D62: 6740.557273 | E62: 9603.463668 | F62: 0 | K62: 0 | M62: 0 | W62: 671549.9902 | X62: нет | Y62: 30 | Z62: 16344.02094
A63: e | B63: 2027-06-02 | C63: 86244.02094 | D63: 6835.99233 | E63: 9508.028611 | F63: 0 | K63: 0 | M63: 69900 | W63: 664713.9978 | X63: страховка | Y63: 31 | Z63: 16344.02094
A64: e | B64: 2027-07-02 | C64: 16344.02094 | D64: 6932.778588 | E64: 9411.242353 | F64: 0 | K64: 0 | M64: 0 | W64: 657781.2193 | X64: нет | Y64: 30 | Z64: 16344.02094
A65: e | B65: 2027-08-02 | C65: 16344.02094 | D65: 7030.935178 | E65: 9313.085763 | F65: 0 | K65: 0 | M65: 0 | W65: 650750.2841 | X65: нет | Y65: 31 | Z65: 16344.02094
A66: e | B66: 2027-09-02 | C66: 16344.02094 | D66: 7130.481502 | E66: 9213.539439 | F66: 0 | K66: 0 | M66: 0 | W66: 643619.8026 | X66: нет | Y66: 31 | Z66: 16344.02094
A67: e | B67: 2027-10-02 | C67: 16344.02094 | D67: 7231.437236 | E67: 9112.583705 | F67: 0 | K67: 0 | M67: 0 | W67: 636388.3653 | X67: нет | Y67: 30 | Z67: 16344.02094
A68: e | B68: 2027-11-02 | C68: 16344.02094 | D68: 7333.822335 | E68: 9010.198606 | F68: 0 | K68: 0 | M68: 0 | W68: 629054.543 | X68: нет | Y68: 31 | Z68: 16344.02094
A69: e | B69: 2027-12-02 | C69: 16344.02094 | D69: 7437.657036 | E69: 8906.363905 | F69: 0 | K69: 0 | M69: 0 | W69: 621616.886 | X69: нет | Y69: 30 | Z69: 16344.02094
A70: e | B70: 2028-01-02 | C70: 16344.02094 | D70: 7542.961863 | E70: 8801.059077 | F70: 0 | K70: 0 | M70: 0 | W70: 614073.9241 | X70: нет | Y70: 31 | Z70: 16344.02094
A71: e | B71: 2028-02-02 | C71: 16344.02094 | D71: 7649.757632 | E71: 8694.263309 | F71: 0 | K71: 0 | M71: 0 | W71: 606424.1665 | X71: нет | Y71: 31 | Z71: 16344.02094
A72: e | B72: 2028-03-02 | C72: 16344.02094 | D72: 7758.06545 | E72: 8585.95549 | F72: 0 | K72: 0 | M72: 0 | W72: 598666.101 | X72: нет | Y72: 29 | Z72: 16344.02094
A73: e | B73: 2028-04-02 | C73: 16344.02094 | D73: 7867.906727 | E73: 8476.114214 | F73: 0 | K73: 0 | M73: 0 | W73: 590798.1943 | X73: нет | Y73: 31 | Z73: 16344.02094
A74: e | B74: 2028-05-02 | C74: 16344.02094 | D74: 7979.303173 | E74: 8364.717768 | F74: 0 | K74: 0 | M74: 0 | W74: 582818.8911 | X74: нет | Y74: 30 | Z74: 16344.02094
A75: e | B75: 2028-06-02 | C75: 86244.02094 | D75: 8092.276807 | E75: 8251.744133 | F75: 0 | K75: 0 | M75: 69900 | W75: 574726.6143 | X75: страховка | Y75: 31 | Z75: 16344.02094
A76: e | B76: 2028-07-02 | C76: 16344.02094 | D76: 8206.849959 | E76: 8137.170981 | F76: 0 | K76: 0 | M76: 0 | W76: 566519.7644 | X76: нет | Y76: 30 | Z76: 16344.02094
A77: e | B77: 2028-08-02 | C77: 16344.02094 | D77: 8323.045277 | E77: 8020.975664 | F77: 0 | K77: 0 | M77: 0 | W77: 558196.7191 | X77: нет | Y77: 31 | Z77: 16344.02094
A78: e | B78: 2028-09-02 | C78: 16344.02094 | D78: 8440.885726 | E78: 7903.135214 | F78: 0 | K78: 0 | M78: 0 | W78: 549755.8334 | X78: нет | Y78: 31 | Z78: 16344.02094
A79: e | B79: 2028-10-02 | C79: 16344.02094 | D79: 8560.3946 | E79: 7783.626341 | F79: 0 | K79: 0 | M79: 0 | W79: 541195.4388 | X79: нет | Y79: 30 | Z79: 16344.02094
A80: e | B80: 2028-11-02 | C80: 16344.02094 | D80: 8681.59552 | E80: 7662.42542 | F80: 0 | K80: 0 | M80: 0 | W80: 532513.8432 | X80: нет | Y80: 31 | Z80: 16344.02094
A81: e | B81: 2028-12-02 | C81: 16344.02094 | D81: 8804.512443 | E81: 7539.508497 | F81: 0 | K81: 0 | M81: 0 | W81: 523709.3308 | X81: нет | Y81: 30 | Z81: 16344.02094
A82: e | B82: 2029-01-02 | C82: 16344.02094 | D82: 8929.169665 | E82: 7414.851275 | F82: 0 | K82: 0 | M82: 0 | W82: 514780.1611 | X82: нет | Y82: 31 | Z82: 16344.02094
A83: e | B83: 2029-02-02 | C83: 16344.02094 | D83: 9055.591826 | E83: 7288.429115 | F83: 0 | K83: 0 | M83: 0 | W83: 505724.5693 | X83: нет | Y83: 31 | Z83: 16344.02094
A84: e | B84: 2029-03-02 | C84: 16344.02094 | D84: 9183.803913 | E84: 7160.217027 | F84: 0 | K84: 0 | M84: 0 | W84: 496540.7654 | X84: нет | Y84: 28 | Z84: 16344.02094
A85: e | B85: 2029-04-02 | C85: 16344.02094 | D85: 9313.831271 | E85: 7030.18967 | F85: 0 | K85: 0 | M85: 0 | W85: 487226.9341 | X85: нет | Y85: 31 | Z85: 16344.02094
A86: e | B86: 2029-05-02 | C86: 16344.02094 | D86: 9445.699598 | E86: 6898.321342 | F86: 0 | K86: 0 | M86: 0 | W86: 477781.2345 | X86: нет | Y86: 30 | Z86: 16344.02094
A87: e | B87: 2029-06-02 | C87: 86244.02094 | D87: 9579.434962 | E87: 6764.585979 | F87: 0 | K87: 0 | M87: 69900 | W87: 468201.7996 | X87: страховка | Y87: 31 | Z87: 16344.02094
A88: e | B88: 2029-07-02 | C88: 16344.02094 | D88: 9715.063795 | E88: 6628.957145 | F88: 0 | K88: 0 | M88: 0 | W88: 458486.7358 | X88: нет | Y88: 30 | Z88: 16344.02094
A89: e | B89: 2029-08-02 | C89: 16344.02094 | D89: 9852.612907 | E89: 6491.408034 | F89: 0 | K89: 0 | M89: 0 | W89: 448634.1229 | X89: нет | Y89: 31 | Z89: 16344.02094
A90: e | B90: 2029-09-02 | C90: 16344.02094 | D90: 9992.109484 | E90: 6351.911456 | F90: 0 | K90: 0 | M90: 0 | W90: 438642.0134 | X90: нет | Y90: 31 | Z90: 16344.02094
A91: e | B91: 2029-10-02 | C91: 16344.02094 | D91: 10133.5811 | E91: 6210.439839 | F91: 0 | K91: 0 | M91: 0 | W91: 428508.4323 | X91: нет | Y91: 30 | Z91: 16344.02094
A92: e | B92: 2029-11-02 | C92: 16344.02094 | D92: 10277.05572 | E92: 6066.96522 | F92: 0 | K92: 0 | M92: 0 | W92: 418231.3765 | X92: нет | Y92: 31 | Z92: 16344.02094
A93: e | B93: 2029-12-02 | C93: 16344.02094 | D93: 10422.5617 | E93: 5921.45924 | F93: 0 | K93: 0 | M93: 0 | W93: 407808.8148 | X93: нет | Y93: 30 | Z93: 16344.02094
A94: e | B94: 2030-01-02 | C94: 16344.02094 | D94: 10570.1278 | E94: 5773.893137 | F94: 0 | K94: 0 | M94: 0 | W94: 397238.687 | X94: нет | Y94: 31 | Z94: 16344.02094
A95: e | B95: 2030-02-02 | C95: 16344.02094 | D95: 10719.7832 | E95: 5624.237744 | F95: 0 | K95: 0 | M95: 0 | W95: 386518.9038 | X95: нет | Y95: 31 | Z95: 16344.02094
A96: e | B96: 2030-03-02 | C96: 16344.02094 | D96: 10871.55746 | E96: 5472.46348 | F96: 0 | K96: 0 | M96: 0 | W96: 375647.3464 | X96: нет | Y96: 28 | Z96: 16344.02094
A97: e | B97: 2030-04-02 | C97: 16344.02094 | D97: 11025.48059 | E97: 5318.540346 | F97: 0 | K97: 0 | M97: 0 | W97: 364621.8658 | X97: нет | Y97: 31 | Z97: 16344.02094
A98: e | B98: 2030-05-02 | C98: 16344.02094 | D98: 11181.58302 | E98: 5162.437917 | F98: 0 | K98: 0 | M98: 0 | W98: 353440.2828 | X98: нет | Y98: 30 | Z98: 16344.02094
A99: e | B99: 2030-06-02 | C99: 86244.02094 | D99: 11339.8956 | E99: 5004.125337 | F99: 0 | K99: 0 | M99: 69900 | W99: 342100.3872 | X99: страховка | Y99: 31 | Z99: 16344.02094
A100: e | B100: 2030-07-02 | C100: 16344.02094 | D100: 11500.44963 | E100: 4843.571315 | F100: 0 | K100: 0 | M100: 0 | W100: 330599.9375 | X100: нет | Y100: 30 | Z100: 16344.02094
A101: e | B101: 2030-08-02 | C101: 16344.02094 | D101: 11663.27682 | E101: 4680.744116 | F101: 0 | K101: 0 | M101: 0 | W101: 318936.6607 | X101: нет | Y101: 31 | Z101: 16344.02094
A102: e | B102: 2030-09-02 | C102: 16344.02094 | D102: 11828.40939 | E102: 4515.611555 | F102: 0 | K102: 0 | M102: 0 | W102: 307108.2513 | X102: нет | Y102: 31 | Z102: 16344.02094
A103: e | B103: 2030-10-02 | C103: 16344.02094 | D103: 11995.87995 | E103: 4348.140992 | F103: 0 | K103: 0 | M103: 0 | W103: 295112.3714 | X103: нет | Y103: 30 | Z103: 16344.02094
A104: e | B104: 2030-11-02 | C104: 16344.02094 | D104: 12165.72162 | E104: 4178.299325 | F104: 0 | K104: 0 | M104: 0 | W104: 282946.6498 | X104: нет | Y104: 31 | Z104: 16344.02094
A105: e | B105: 2030-12-02 | C105: 16344.02094 | D105: 12337.96796 | E105: 4006.052983 | F105: =$G$18 -> 0 | K105: =IF(X105="страховка",$G$20,0) -> 0 | M105: =IF(X105="страховка",$G$21,0) -> 0 | W105: 270608.6818 | X105: =IF(MONTH($B$40)-MONTH(B105)=0,"страховка","нет") -> нет | Y105: 30 | Z105: 16344.02094
A106: e | B106: =DATE(YEAR(B105),MONTH(B105)+1,DAY(B105)) -> 2031-01-02 | C106: =SUM(D106:V106) -> 16344.02094 | D106: =Z106-E106 -> 12512.65302 | E106: =W105*$D$14/12 -> 3831.36792 | F106: 0 | K106: 0 | M106: 0 | W106: =W105-D106 -> 258096.0288 | X106: нет | Y106: =B106-B105 -> 31 | Z106: =PMT($D$14/12,$D$11,-$D$9) -> 16344.02094
A107: e | B107: 2031-02-02 | C107: 16344.02094 | D107: 12689.81133 | E107: 3654.209608 | F107: 0 | K107: 0 | M107: 0 | W107: 245406.2175 | X107: нет | Y107: 31 | Z107: 16344.02094
A108: e | B108: 2031-03-02 | C108: 16344.02094 | D108: 12869.47791 | E108: 3474.543029 | F108: 0 | K108: 0 | M108: 0 | W108: 232536.7395 | X108: нет | Y108: 28 | Z108: 16344.02094
A109: e | B109: 2031-04-02 | C109: 16344.02094 | D109: 13051.68827 | E109: 3292.332671 | F109: 0 | K109: 0 | M109: 0 | W109: 219485.0513 | X109: нет | Y109: 31 | Z109: 16344.02094
A110: e | B110: 2031-05-02 | C110: 16344.02094 | D110: 13236.47842 | E110: 3107.542518 | F110: 0 | K110: 0 | M110: 0 | W110: 206248.5728 | X110: нет | Y110: 30 | Z110: 16344.02094
A111: e | B111: 2031-06-02 | C111: 86244.02094 | D111: 13423.8849 | E111: 2920.136044 | F111: 0 | K111: 0 | M111: 69900 | W111: 192824.688 | X111: страховка | Y111: 31 | Z111: 16344.02094
A112: e | B112: 2031-07-02 | C112: 16344.02094 | D112: 13613.94473 | E112: 2730.076207 | F112: 0 | K112: 0 | M112: 0 | W112: 179210.7432 | X112: нет | Y112: 30 | Z112: 16344.02094
A113: e | B113: 2031-08-02 | C113: 16344.02094 | D113: 13806.6955 | E113: 2537.325439 | F113: 0 | K113: 0 | M113: 0 | W113: 165404.0477 | X113: нет | Y113: 31 | Z113: 16344.02094
A114: e | B114: 2031-09-02 | C114: 16344.02094 | D114: 14002.1753 | E114: 2341.845642 | F114: 0 | K114: 0 | M114: 0 | W114: 151401.8724 | X114: нет | Y114: 31 | Z114: 16344.02094
A115: e | B115: 2031-10-02 | C115: 16344.02094 | D115: 14200.42276 | E115: 2143.598177 | F115: 0 | K115: 0 | M115: 0 | W115: 137201.4497 | X115: нет | Y115: 30 | Z115: 16344.02094
A116: e | B116: 2031-11-02 | C116: 16344.02094 | D116: 14401.47708 | E116: 1942.543858 | F116: 0 | K116: 0 | M116: 0 | W116: 122799.9726 | X116: нет | Y116: 31 | Z116: 16344.02094
A117: e | B117: 2031-12-02 | C117: 16344.02094 | D117: 14605.378 | E117: 1738.642945 | F117: 0 | K117: 0 | M117: 0 | W117: 108194.5946 | X117: нет | Y117: 30 | Z117: 16344.02094
A118: e | B118: 2032-01-02 | C118: 16344.02094 | D118: 14812.16581 | E118: 1531.855135 | F118: 0 | K118: 0 | M118: 0 | W118: 93382.42877 | X118: нет | Y118: 31 | Z118: 16344.02094
A119: e | B119: 2032-02-02 | C119: 16344.02094 | D119: 15021.88139 | E119: 1322.139554 | F119: 0 | K119: 0 | M119: 0 | W119: 78360.54739 | X119: нет | Y119: 31 | Z119: 16344.02094
A120: e | B120: 2032-03-02 | C120: 16344.02094 | D120: 15234.56619 | E120: 1109.45475 | F120: 0 | K120: 0 | M120: 0 | W120: 63125.9812 | X120: нет | Y120: 29 | Z120: 16344.02094
A121: e | B121: 2032-04-02 | C121: 16344.02094 | D121: 15450.26226 | E121: 893.7586838 | F121: 0 | K121: 0 | M121: 0 | W121: 47675.71894 | X121: нет | Y121: 31 | Z121: 16344.02094
A122: e | B122: 2032-05-02 | C122: 16344.02094 | D122: 15669.01222 | E122: 675.0087206 | F122: 0 | K122: 0 | M122: 0 | W122: 32006.70672 | X122: нет | Y122: 30 | Z122: 16344.02094
A123: e | B123: 2032-06-02 | C123: 86244.02094 | D123: 15890.85932 | E123: 453.1616226 | F123: 0 | K123: 0 | M123: 69900 | W123: 16115.8474 | X123: страховка | Y123: 31 | Z123: 16344.02094
A124: e | B124: 2032-07-02 | C124: 16344.02094 | D124: 16115.8474 | E124: 228.1735395 | F124: 0 | W124: -3.929017112e-10 | Y124: 30 | Z124: 16344.02094
B125: Усього | C125: 1862197.759 | D125: 800000 | E125: 572897.759 | F125: 0 | G125: 0 | H125: 0 | I125: 0 | J125: 2000 | K125: 0 | L125: 0 | M125: 559200 | N125: 0 | O125: 0 | P125: 1500 | Q125: 0 | R125: 33333.33333 | S125: 0 | T125: 0 | U125: =XIRR(C40:C124,B40:B124) -> 0.3897980511 | V125: 1168931.092
B127: Загальні витрати за кредитом( проценти за користування кредитом, комісії та інші обовязкові платежі за супровідні послуги кредитодавця, кредитного посередника (за наявності) та третіх осіб, повязані з отриманням, обслуговуванням та поверненням кредиту), грн з них: | J127: =V125 -> 1168931.092
B128: - Платежі за супутні послуги кредитодавця, повязані з отриманням, обслуговуванням та поверненням кредиту), грн | J128: =E125+F125+G125+I125+J125 -> 574897.759
B129: - Платежі за супутні послуги третіх осіб, повязані з отриманням, обслуговуванням та поверненням кредиту), грн | J129: =K125+L125+M125+N125+O125+P125+R125+T125 -> 594033.3333
B130: Орієнтовна загальна вартість кредиту для споживача за весь строк користування кредитом ( у т.ч. тіло кредиту, відсотки, комісії та інші платежі), грн | J130: =J127+D9 -> 1968931.092
B131: Орієнтовна реальна річна процентна ставка, % річних | J131: =U125 -> 0.3897980511
B132: Застереження: Розрахунок загальної вартості Кредиту і реальної процентної ставки носить інформативний характер для Позичальника і визначено станом на дату укладання Кредитного договору. При здійсненні розрахунку загальної вартості Кредиту і реальної процентної ставки Кредитор враховував вартість супутніх послуг третіх осіб, послуги кредитного посередник ( за наявності). В розрахунок загальної вартості Кредиту і реальної процентної ставки не включались умовні платежі Позичальника по Договору (пені, штрафи, які встановлюються згідно з Договором).
B133: Наведені обчислення реальної річної процентної ставки та орієнтовної загальної вартості кредиту для споживача є репрезентативними та базуються на обраних споживачем умовах кредитування, викладених вище, і на припущенні, що договір про споживчий кредит залишатиметься дійсним протягом погодженого строку, а кредитодавець і споживач виконають свої обов’язки на умовах та у строки, визначені в договорі.Реальна річна процентна ставка обчислена на основі припущення, що процентна ставка та інші платежі за послуги кредитодавця залишатимуться незмінними та застосовуватимуться протягом строку дії договору про споживчий кредит. Застереження: використання інших способів надання кредиту та/або зміна інших вищезазначених умов кредитування можуть мати наслідком застосування іншої реальної річної процентної ставки та орієнтовної загальної вартості кредиту для споживача. Орієнтовна реальна річна процентна ставка обчислена з використанням фінансової функції ЧИСТВНДОХ програмного продукту Microsoft Excel.
B134: Позичальник не сплачує Кредитору комісійних винагород за розрахунково-касове обслуговування, що пов‘язані з погашенням Кредиту та процентів за ним Позичальником у готівковій чи безготівковій формі через установи Кредитора. У випадку погашення Позичальником Кредиту та процентів за ним не через установи Кредитора Позичальник буде сплачувати послуги інших банків згідно з тарифами, які діятимуть в таких банках на момент здійснення розрахунково-касового обслуговування Позичальника.

Sheet Номінальна %ставка (hidden)
B1: Строк кредиту, міс.
A2: Авансовий внесок | B2: 12 | C2: 24 | D2: 36 | E2: 48 | F2: 60 | G2: 72 | H2: 84
A3: 0.2 | B3: 0.0999 | C3: 0.1399 | D3: 0.1549 | E3: 0.1599 | F3: 0.1625 | G3: 0.1725 | H3: 0.1699
A4: 0.3 | B4: 0.0899 | C4: 0.1399 | D4: 0.1549 | E4: 0.1599 | F4: 0.1625 | G4: 0.1725 | H4: 0.1699
A5: 0.4 | B5: 0.0799 | C5: 0.1199 | D5: 0.1299 | E5: 0.1499 | F5: 0.1599 | G5: 0.1599 | H5: 0.1599
A6: 0.5 | B6: 0.0549 | C6: 0.0999 | D6: 0.1149 | E6: 0.1249 | F6: 0.1339 | G6: 0.1349 | H6: 0.1399
A7: 0.6 | B7: 0.0299 | C7: 0.0799 | D7: 0.0959 | E7: 0.1099 | F7: 0.1199 | G7: 0.1249 | H7: 0.1299
A8: 0.7 | B8: 0.0001 | C8: 0.0399 | D8: 0.0599 | E8: 0.0799 | F8: 0.0899 | G8: 0.0999 | H8: 0.1099
A10: 12 міс. | B10: 0.0999 | C10: 0.0899 | D10: 0.0799 | E10: 0.0549 | F10: 0.0299 | G10: 0.0001
A11: 24 міс. | B11: 0.1399 | C11: 0.1399 | D11: 0.1199 | E11: 0.0999 | F11: 0.0799 | G11: 0.0399
A12: 36 міс. | B12: 0.1549 | C12: 0.1549 | D12: 0.1299 | E12: 0.1149 | F12: 0.0959 | G12: 0.0599
A13: 48 міс. | B13: 0.1599 | C13: 0.1599 | D13: 0.1499 | E13: 0.1249 | F13: 0.1099 | G13: 0.0799
A14: 60 міс. | B14: 0.1625 | C14: 0.1625 | D14: 0.1599 | E14: 0.1339 | F14: 0.1199 | G14: 0.0899
A15: 72 міс. | B15: 0.1725 | C15: 0.1725 | D15: 0.1599 | E15: 0.1349 | F15: 0.1249 | G15: 0.0999
A16: 84 міс. | B16: 0.1699 | C16: 0.1699 | D16: 0.1599 | E16: 0.1399 | F16: 0.1299 | G16: 0.1099
A17: Строк кредиту | B17: Авансовий внесок (від вартості суми авто)
B18: від 20% | C18: від 30% | D18: від 40% | E18: від 50% | F18: від 60%
B19: Річна процентна ставка,%
A20: 12 міс. | D20: 0.0199 | E20: 0.0001 | F20: 0.0001
A21: 24 міс. | D21: 0.0799 | E21: 0.0499 | F21: 0.0299
A22: 36 міс. | D22: 0.1099 | E22: 0.0899 | F22: 0.0599
A23: 48 міс. | D23: 0.1199 | E23: 0.0999 | F23: 0.0799
A24: 60 міс. | D24: 0.1299 | E24: 0.1099 | F24: 0.0899

Sheet Лист1 (hidden)
